fUSD/lending_fUSD_20251013
["ID","MTS","AMOUNT","RATE_DAILY","PERIOD"]
[391117834,1760360990334,235.0,0.00028767,120]
[391117836,1760361003684,233.33,0.000161,30]
[391117837,1760361018194,233.32,0.00012535,2]
[391117884,1760361032672,-832.0,0.00013617,2]
[391117885,1760361032682,-216.45473665,0.00013758,2]
[391117886,1760361032691,-366.23,0.00013899,2]
[391117887,1760361032700,-190.93,0.00014004,2]
[391117888,1760361032710,-195.0,0.0001402,2]
[391117889,1760361032719,-1.18605463,0.0001402,2]
[391117890,1760361032730,-1998.81394537,0.0001402,2]
[391117891,1760361032740,-1200.0,0.00014066,2]
[391117892,1760361032749,-331.0,0.00014067,2]
[391117893,1760361032758,-300.0,0.00014067,2]
[391117894,1760361032767,-248.0,0.00014067,2]
[391117895,1760361032777,-300.0,0.00014067,2]
[391117896,1760361032787,-300.0,0.00014067,2]
[391117897,1760361032796,-195.0,0.00014068,2]
[391117898,1760361032805,-2000.0,0.00014068,2]
[391117899,1760361032815,-2000.0,0.00014068,2]
[391117900,1760361032825,-410.93946459,0.00014068,2]
[391117901,1760361032834,-150.0,0.00014123,2]
[391117902,1760361032844,-3071.81922368,0.00014124,2]
[391117903,1760361032855,-3319.99680034,0.00014124,2]
[391117904,1760361032866,-2819.53196583,0.00014124,2]
[391117905,1760361032876,-151.0,0.00014124,2]
[391117906,1760361032885,-267.46074303,0.00014124,2]
[391117907,1760361032895,-151.0,0.00014124,2]
[391117908,1760361032904,-151.0,0.00014124,2]
[391117909,1760361032914,-151.0,0.00014124,2]
[391117910,1760361032923,-203.36420533,0.00014124,2]
[391117911,1760361032932,-699.0683413,0.00014132,2]
[391117912,1760361032944,-6018.8516587,0.00014132,2]
[391117913,1760361032953,-1000.0,0.0001416,2]
[391117914,1760361032964,-2284.71693789,0.00014179,2]
[391117915,1760361032975,-7267.45092758,0.00014179,2]
[391117916,1760361032984,-666.0,0.00014217,3]
[391117917,1760361032995,-9905.5980765,0.00014234,2]
[391117918,1760361033004,-311.05,0.00014246,2]
[391117919,1760361033014,-166.66,0.00014267,2]
[391117920,1760361033026,-10272.10520533,0.00014289,2]
[391117921,1760361033036,-10652.17309792,0.00014344,2]
[391117922,1760361033045,-11046.30350255,0.00014399,2]
[391117923,1760361033055,-11455.01673214,0.00014454,2]
[391117924,1760361033064,-2437.70002987,0.00014509,2]
[391117925,1760361033074,-1911.13320778,0.00014699,2]
[391117926,1760361033083,-200.0,0.00014879,2]
[391117927,1760361033093,-200.0,0.0001488,2]
[391117928,1760361033102,-1001.91969934,0.00014899,2]
[391117929,1760361033111,-155.436,0.00014899,2]
[391117930,1760361033120,-2676.025,0.00014899,2]
[391117931,1760361033130,-9403.9725073,0.000149,2]
[391117932,1760361033139,-12586.58485473,0.000149,2]
[391117933,1760361033148,-208.1644166,0.000149,2]
[391117934,1760361033157,-163.17118847,0.000149,2]
[391117935,1760361033167,-500.0,0.00014973,2]
[391117936,1760361033176,-500.0,0.00014973,2]
[391117937,1760361033186,-500.0,0.00014973,2]
[391117938,1760361033195,-494.02992228,0.00014973,2]
[391117939,1760361033204,-500.0,0.00014973,2]
[391117940,1760361033215,-461.00697767,0.00014973,2]
[391117941,1760361033224,-500.0,0.00014973,2]
[391117942,1760361033233,-500.0,0.00014973,2]
[391117943,1760361033243,-500.0,0.00014973,2]
[391117944,1760361033253,-500.0,0.00014973,2]
[391117945,1760361033262,-500.0,0.00014973,2]
[391117946,1760361033272,-2500.0,0.00014979,2]
[391117947,1760361033282,-2000.0,0.00014982,2]
[391117948,1760361033291,-2000.0,0.00014982,2]
[391117949,1760361033301,-857.46696926,0.00014982,2]
[391117950,1760361033311,-322.6107,0.00014982,2]
[391117951,1760361033320,-2000.0,0.00014982,2]
[391117952,1760361033330,-151.0,0.00014982,2]
[391117953,1760361033339,-151.0,0.00014982,2]
[391117954,1760361033349,-623.58710448,0.00014982,2]
[391117955,1760361033359,-151.0,0.00014982,2]
[391117956,1760361033368,-173.36787212,0.00014982,2]
[391117957,1760361033378,-2000.15617386,0.00014982,2]
[391117958,1760361033387,-151.0,0.00014982,2]
[391117959,1760361033397,-151.0,0.00014982,2]
[391117960,1760361033407,-151.0,0.00014982,2]
[391117961,1760361033416,-151.0,0.00014982,2]
[391117962,1760361033426,-214.38159764,0.00014982,2]
[391117963,1760361033435,-151.0,0.00014982,2]
[391117964,1760361033445,-151.0,0.00014982,2]
[391117965,1760361033455,-151.0,0.00014982,2]
[391117966,1760361033465,-151.0,0.00014982,2]
[391117967,1760361033475,-200.0,0.00014982,2]
[391117968,1760361033488,-688.9,0.00014991,2]
[391117969,1760361033498,-250.56704561,0.00014998,2]
[391117970,1760361033507,-150.0,0.00014998,2]
[391117971,1760361033518,-150.0,0.00014998,2]
[391117972,1760361033529,-150.0,0.00014998,2]
[391117973,1760361033539,-150.0,0.00014998,2]
[391117974,1760361033548,-150.0,0.00014998,2]
[391117975,1760361033560,-293.16218592,0.00014998,2]
[391117976,1760361033569,-150.0,0.00014998,2]
[391117977,1760361033578,-150.0,0.00014998,2]
[391117978,1760361033588,-150.0,0.00014998,2]
[391117979,1760361033597,-150.0,0.00014998,2]
[391117980,1760361033607,-150.0,0.00014998,2]
[391117981,1760361033617,-150.0,0.00014998,2]
[391117982,1760361033627,-500.0,0.00014998,2]
[391117983,1760361033636,-150.0,0.00014998,2]
[391117984,1760361033646,-150.0,0.00014998,2]
[391117985,1760361033655,-150.0,0.00014998,2]
[391117986,1760361033665,-150.0,0.00014998,2]
[391117987,1760361033674,-150.0,0.00014998,2]
[391117988,1760361033684,-500.0,0.00014998,2]
[391117989,1760361033694,-150.0,0.00014998,2]
[391117990,1760361033703,-150.0,0.00014998,2]
[391117991,1760361033715,-150.0,0.00014998,2]
[391117992,1760361033725,-500.0,0.00014998,2]
[391117993,1760361033735,-150.0,0.00014998,2]
[391117994,1760361033744,-150.0,0.00014998,2]
[391117995,1760361033754,-150.0,0.00014998,2]
[391117996,1760361033764,-500.0,0.00014998,2]
[391117997,1760361033773,-391.92795535,0.00014999,2]
[391117998,1760361033785,-500.0,0.00014999,2]
[391117999,1760361033794,-2013.0,0.00015,2]
[391118000,1760361033803,-63116.96944459,0.00015,2]
[391118001,1760361033816,-24640.75176285,0.00015,2]
[391118002,1760361033827,-63238.11531958,0.00015,2]
[391118003,1760361033861,-400.0,0.00015,2]
[391118004,1760361033872,-2833.88730982,0.00015,2]
[391118005,1760361033883,-667.84771728,0.00015,2]
[391118006,1760361033895,-1147.2,0.00015,2]
[391118007,1760361033906,-636.21076606,0.00015,2]
[391118008,1760361033917,-2787.73849155,0.00015,2]
[391118009,1760361033928,-2690.95070822,0.00015,2]
[391118010,1760361033939,-556.64674786,0.00015,2]
[391118011,1760361033950,-17032.82778514,0.00015,2]
[391118012,1760361033961,-606.64638681,0.00015,2]
[391118013,1760361033993,-318470.883519,0.00015,2]
[391118023,1760361039896,-405.55475543,0.00014999,2]
[391118024,1760361039906,-500.0,0.00014999,2]
[391118025,1760361039915,-339.25158274,0.00014999,2]
[391118026,1760361039925,-278.99014252,0.00014999,2]
[391118027,1760361039935,-500.0,0.00014999,2]
[391118028,1760361039946,-2086.43157771,0.00015,2]
[391118029,1760361039958,-1953.91178636,0.00015,2]
[391118030,1760361041030,-207.28851619,0.00014999,2]
[391118031,1760361041041,-500.0,0.00014999,2]
[391118032,1760361041051,-500.0,0.00014999,2]
[391118033,1760361041062,-500.0,0.00014999,2]
[391118034,1760361041076,-2027.00463772,0.00015,2]
[391118035,1760361041108,-764.0,0.00015,2]
[391118048,1760361043387,-253201.35855239,0.00015,2]
[391118051,1760361043444,-279.3450855,0.00015,2]
[391118058,1760361045812,-256.54500014,0.00015,2]
[391118059,1760361046033,-296.36542003,0.00015,2]
[391118061,1760361047352,740.0,0.00028767,120]
[391118064,1760361233047,-159.0,0.00027,30]
[391118065,1760361233105,-159.0,0.00027,30]
[391118066,1760361233167,-300.0,0.00027395,30]
[391118067,1760361233228,-150.0,0.00027397,60]
[391118068,1760361233283,-150.0,0.00027397,60]
[391118069,1760361233337,-200.0,0.00027397,60]
[391118070,1760361233398,-151.0,0.00028,30]
[391118071,1760361233452,-151.0,0.00028,30]
[391118072,1760361233508,-151.0,0.00028,30]
[391118073,1760361233566,-151.0,0.00028,30]
[391118074,1760361233624,-151.0,0.00028,30]
[391118075,1760361233683,-151.0,0.00028,30]
[391118076,1760361233740,-151.0,0.00028,30]
[391118077,1760361233796,-151.0,0.00028,30]
[391118078,1760361233852,-151.0,0.00028,30]
[391118079,1760361233908,-151.0,0.00028,30]
[391118080,1760361233965,-151.0,0.00028,30]
[391118081,1760361234021,-151.0,0.00028,30]
[391118082,1760361234077,-151.0,0.00028,30]
[391118083,1760361234133,-151.0,0.00028,30]
[391118084,1760361234196,-151.0,0.00028,30]
[391118085,1760361234252,-288.77176,0.00028,30]
[391118086,1760361234309,-175.658012,0.00028,30]
[391118087,1760361234365,-151.0,0.00028,30]
[391118088,1760361234429,-190.653668,0.00028,30]
[391118089,1760361234502,-151.0,0.00028,30]
[391118090,1760361234561,-151.0,0.00028,30]
[391118091,1760361234618,-151.0,0.00028,30]
[391118092,1760361234678,-151.0,0.00028,30]
[391118093,1760361234735,-151.0,0.00028,30]
[391118094,1760361234789,-151.0,0.00028,30]
[391118095,1760361234844,-151.0,0.00028,30]
[391118096,1760361234896,-151.0,0.00028,30]
[391118097,1760361234948,-151.0,0.00028,30]
[391118098,1760361234999,-151.0,0.00028,30]
[391118099,1760361235055,-347.996028,0.00028,30]
[391118100,1760361235108,-347.996028,0.00028,30]
[391118101,1760361235162,-151.0,0.00028,30]
[391118102,1760361235215,-347.996028,0.00028,30]
[391118103,1760361235270,-347.996028,0.00028,30]
[391118104,1760361235327,-181.454686,0.00028,30]
[391118105,1760361235383,-181.454686,0.00028,30]
[391118106,1760361235440,-181.454686,0.00028,30]
[391118107,1760361235497,-151.0,0.00028,30]
[391118108,1760361235555,-181.454686,0.00028,30]
[391118109,1760361235614,-968.514388,0.00028,30]
[391118110,1760361235668,-159.191952,0.00028,30]
[391118111,1760361235721,-968.514388,0.00028,30]
[391118112,1760361235774,-968.514388,0.00028,30]
[391118113,1760361235828,-968.514388,0.00028,30]
[391118114,1760361235881,-151.0,0.00028,30]
[391118115,1760361235937,-151.0,0.00028,30]
[391118116,1760361235992,-151.0,0.00028,30]
[391118117,1760361236048,-151.0,0.00028,30]
[391118118,1760361236119,-151.0,0.00028,30]
[391118119,1760361236177,-500.0,0.0002811,30]
[391118120,1760361236236,-500.0,0.0002811,30]
[391118121,1760361236294,-500.0,0.0002811,30]
[391118122,1760361236350,-500.0,0.0002811,30]
[391118123,1760361236800,-500.0,0.0002811,30]
[391118124,1760361236852,-500.0,0.0002811,30]
[391118125,1760361236905,-577.20818699,0.0002811,30]
[391118126,1760361236962,-205.0,0.00028767,120]
[391118127,1760361237019,-150.0,0.00028783,120]
[391118128,1760361237073,-261.815446,0.000289,30]
[391118129,1760361237125,-155.868144,0.000289,30]
[391118130,1760361237180,-151.0,0.000289,30]
[391118131,1760361237235,-151.0,0.000289,30]
[391118132,1760361237286,-151.0,0.000289,30]
[391118133,1760361237335,-151.0,0.000289,30]
[391118134,1760361237384,-151.0,0.000289,30]
[391118135,1760361237433,-259.376848,0.000289,30]
[391118136,1760361237487,-151.0,0.000289,30]
[391118137,1760361237539,-151.0,0.000289,30]
[391118138,1760361237591,-177.956168,0.000289,30]
[391118139,1760361237643,-151.0,0.000289,30]
[391118140,1760361237692,-151.0,0.000289,30]
[391118141,1760361237740,-151.0,0.000289,30]
[391118142,1760361237787,-151.0,0.000289,30]
[391118143,1760361237834,-151.0,0.000289,30]
[391118144,1760361237885,-151.0,0.000289,30]
[391118145,1760361237933,-250.249586,0.000289,30]
[391118146,1760361237984,-151.0,0.000289,30]
[391118147,1760361238035,-151.0,0.000289,30]
[391118148,1760361238086,-151.0,0.000289,30]
[391118149,1760361238136,-151.0,0.000289,30]
[391118150,1760361238186,-151.0,0.000289,30]
[391118151,1760361238237,-347.996028,0.000289,30]
[391118152,1760361238285,-347.996028,0.000289,30]
[391118153,1760361238333,-347.996028,0.000289,30]
[391118154,1760361238379,-347.996028,0.000289,30]
[391118155,1760361238425,-181.454686,0.000289,30]
[391118156,1760361238472,-181.454686,0.000289,30]
[391118157,1760361238523,-181.454686,0.000289,30]
[391118158,1760361238578,-181.454686,0.000289,30]
[391118159,1760361238629,-151.0,0.000289,30]
[391118160,1760361238680,-968.514388,0.000289,30]
[391118161,1760361238732,-968.514388,0.000289,30]
[391118162,1760361238788,-968.514388,0.000289,30]
[391118163,1760361238839,-968.514388,0.000289,30]
[391118164,1760361238888,-151.0,0.000289,30]
[391118165,1760361238944,-151.0,0.000289,30]
[391118166,1760361238999,-151.0,0.000289,30]
[391118167,1760361239053,-150.0,0.00028982,120]
[391118168,1760361239105,-202.74309018,0.00029,120]
[391118169,1760361239177,-1000.0,0.00029,30]
[391118170,1760361239232,-1002.47454878,0.00029,120]
[391118171,1760361239282,-1444.0,0.00029041,120]
[391118172,1760361239334,-150.0,0.00029086,120]
[391118173,1760361239386,-150.0,0.00029158,120]
[391118174,1760361239441,-157044.28358772,0.0002918,30]
[391118175,1760361239493,-319.36323058,0.00029198,120]
[391118176,1760361239555,-475.32661018,0.000292,30]
[391118177,1760361239619,-159.0,0.000293,120]
[391118178,1760361239672,-159.0,0.000293,120]
[391118179,1760361239729,-159.0,0.000293,120]
[391118180,1760361239787,-150.0,0.000293,120]
[391118181,1760361239842,-1000.0,0.00029326,30]
[391118182,1760361239902,-1000.0,0.00029326,30]
[391118183,1760361239958,-299.754,0.00029326,30]
[391118184,1760361240014,-897.20576127,0.0002933,120]
[391118185,1760361240072,-150.0,0.00029374,120]
[391118186,1760361240131,-61060.3,0.00029389,120]
[391118187,1760361240190,-502.49415926,0.00029412,120]
[391118188,1760361240246,-150.0,0.00029457,30]
[391118189,1760361240300,-1442.15641878,0.00029457,30]
[391118190,1760361240355,-185.10552037,0.00029457,30]
[391118191,1760361240410,-150.0,0.00029457,30]
[391118192,1760361240463,-1401.40338882,0.00029457,30]
[391118193,1760361240515,-150.0,0.00029457,30]
[391118194,1760361240573,-283.07412063,0.00029457,30]
[391118195,1760361240628,-150.0,0.00029457,30]
[391118196,1760361240684,-1999.18022636,0.00029457,30]
[391118197,1760361240743,-67919.15188616,0.00029499,30]
[391118198,1760361240802,-151.0,0.00029499,30]
[391118199,1760361240864,-151.0,0.00029499,30]
[391118200,1760361240920,-151.0,0.00029499,30]
[391118201,1760361240979,-151.0,0.00029499,30]
[391118202,1760361241037,-151.0,0.00029499,30]
[391118203,1760361241091,-151.0,0.00029499,30]
[391118204,1760361241147,-151.0,0.00029499,30]
[391118205,1760361241203,-151.0,0.00029503,30]
[391118206,1760361241259,-151.0,0.00029503,30]
[391118207,1760361241312,-151.0,0.00029503,30]
[391118208,1760361241365,-180.018992,0.00029503,30]
[391118209,1760361241419,-151.0,0.00029503,30]
[391118210,1760361241475,-50000.0,0.00029506,31]
[391118211,1760361241536,-50000.0,0.00029506,32]
[391118212,1760361241595,-50000.0,0.00029506,33]
[391118213,1760361241654,-50000.0,0.00029506,34]
[391118214,1760361241713,-50000.0,0.00029506,35]
[391118215,1760361241772,-50000.0,0.00029506,36]
[391118216,1760361241830,-50000.0,0.00029506,37]
[391118217,1760361242165,-50000.0,0.00029506,38]
[391118218,1760361242228,-50000.0,0.00029506,39]
[391118219,1760361242281,-151.0,0.00029506,30]
[391118220,1760361242335,-151.0,0.00029506,30]
[391118221,1760361242387,-151.0,0.00029506,30]
[391118222,1760361242441,-151.0,0.00029506,30]
[391118223,1760361242495,-151.0,0.00029506,30]
[391118224,1760361242548,-151.0,0.00029506,30]
[391118225,1760361242604,-151.0,0.00029506,30]
[391118226,1760361242655,-347.996028,0.00029506,30]
[391118227,1760361242709,-347.996028,0.00029506,30]
[391118228,1760361242765,-347.996028,0.00029506,30]
[391118229,1760361242821,-347.996028,0.00029506,30]
[391118230,1760361242878,-181.454686,0.00029506,30]
[391118231,1760361242933,-181.454686,0.00029506,30]
[391118232,1760361242988,-181.454686,0.00029506,30]
[391118233,1760361243047,-181.454686,0.00029506,30]
[391118234,1760361243104,-151.0,0.00029506,30]
[391118235,1760361243160,-968.514388,0.00029506,30]
[391118236,1760361243220,-968.514388,0.00029506,30]
[391118237,1760361243279,-968.514388,0.00029506,30]
[391118238,1760361243335,-968.514388,0.00029506,30]
[391118239,1760361243392,-184.706828,0.00029506,30]
[391118240,1760361244426,-151.0,0.00029507,30]
[391118241,1760361244483,-151.0,0.00029507,30]
[391118242,1760361244539,-151.0,0.00029507,30]
[391118243,1760361244592,-151.0,0.00029507,30]
[391118244,1760361244645,-151.0,0.00029507,30]
[391118245,1760361244698,-151.0,0.00029507,30]
[391118246,1760361244752,-166.490779,0.00029507,30]
[391118247,1760361244806,-188.918122,0.00029507,30]
[391118248,1760361244860,-347.996028,0.00029507,30]
[391118249,1760361244914,-347.996028,0.00029507,30]
[391118250,1760361244969,-347.996028,0.00029507,30]
[391118251,1760361245025,-347.996028,0.00029507,30]
[391118252,1760361245077,-347.996028,0.00029507,30]
[391118253,1760361245130,-347.996028,0.00029507,30]
[391118254,1760361245185,-347.996028,0.00029507,30]
[391118255,1760361245239,-347.996036,0.00029507,30]
[391118256,1760361245292,-181.454686,0.00029507,30]
[391118257,1760361245342,-181.454686,0.00029507,30]
[391118258,1760361245394,-181.454686,0.00029507,30]
[391118259,1760361245449,-181.454686,0.00029507,30]
[391118260,1760361245501,-181.454686,0.00029507,30]
[391118261,1760361245554,-181.454686,0.00029507,30]
[391118262,1760361245924,-181.454686,0.00029507,30]
[391118263,1760361245983,-181.454694,0.00029507,30]
[391118264,1760361246039,-151.0,0.00029507,30]
[391118265,1760361246094,-151.0,0.00029507,30]
[391118266,1760361246150,-968.514388,0.00029507,30]
[391118267,1760361246203,-968.514388,0.00029507,30]
[391118268,1760361246258,-968.514388,0.00029507,30]
[391118269,1760361246313,-968.514388,0.00029507,30]
[391118270,1760361246371,-968.514388,0.00029507,30]
[391118271,1760361246424,-968.514388,0.00029507,30]
[391118272,1760361246478,-968.514388,0.00029507,30]
[391118273,1760361246534,-968.514386,0.00029507,30]
[391118274,1760361246589,-151.0,0.00029507,30]
[391118275,1760361246645,-274.52740449,0.00029507,30]
[391118276,1760361246703,-5000.02,0.00029598,30]
[391118277,1760361246757,-150.0,0.00029724,120]
[391118278,1760361246811,-150.0,0.00029836,120]
[391118279,1760361246865,-150.0,0.00029856,120]
[391118280,1760361246920,-150.0,0.00029881,120]
[391118281,1760361246979,-150.0,0.00029983,120]
[391118282,1760361247033,-500.0,0.0003,30]
[391118283,1760361247086,-411.93222671,0.0003,30]
[391118284,1760361247136,-3302.0,0.0003,30]
[391118285,1760361247189,-160.0,0.0003,30]
[391118286,1760361247238,-620.53889706,0.0003,30]
[391118287,1760361247287,-172.93717817,0.0003,30]
[391118288,1760361247335,-208.0,0.0003,120]
[391118289,1760361247383,-1106.13853878,0.0003,120]
[391118290,1760361247430,-273.58599278,0.0003,120]
[391118291,1760361247477,-290.0960043,0.0003,120]
[391118292,1760361247532,-323.56554761,0.0003,120]
[391118293,1760361247586,-615.37519417,0.0003,120]
[391118294,1760361247638,-2730.52140663,0.0003,90]
[391118295,1760361247692,-2688.31685507,0.0003,120]
[391118296,1760361247745,-1325.40766825,0.0003,120]
[391118297,1760361247798,-303.99173582,0.0003,120]
[391118298,1760361247849,-161.05307656,0.0003,120]
[391118299,1760361247904,-400.0,0.0003,120]
[391118300,1760361247958,-1000.0,0.0003,120]
[391118301,1760361248012,-500.0,0.0003,120]
[391118302,1760361248067,-880.0,0.0003,120]
[391118303,1760361248123,-600.0,0.0003,120]
[391118304,1760361248176,-2071.50284204,0.0003,120]
[391118305,1760361248230,-300.0,0.0003,30]
[391118306,1760361248287,-200.0,0.0003,120]
[391118307,1760361248346,-700.0,0.0003,120]
[391118308,1760361248406,-1371.1058423,0.0003,120]
[391118309,1760361248462,-985.22973099,0.0003,90]
[391118310,1760361248519,-500.0,0.0003,120]
[391118311,1760361248578,-476.60225749,0.0003,120]
[391118312,1760361248634,-4670.42825284,0.0003,120]
[391118313,1760361248691,-492.15143776,0.0003,120]
[391118314,1760361248744,-562.66276362,0.0003,30]
[391118315,1760361248796,-320054.71693385,0.0003,30]
[391118316,1760361248847,-500.0,0.0003,120]
[391118317,1760361248898,-200.0,0.0003,120]
[391118318,1760361248961,-475.32661018,0.0003,120]
[391118319,1760361249014,-150.0,0.00030001,120]
[391118320,1760361249066,-150.0,0.00030029,120]
[391118321,1760361249117,-475.32661018,0.000301,30]
[391118322,1760361249168,-1460.60161583,0.0003013,30]
[391118323,1760361249219,-271.57569144,0.0003013,30]
[391118324,1760361249272,-300.0,0.0003013,30]
[391118325,1760361249328,-1800.0,0.0003013,120]
[391118326,1760361249381,-634.90588951,0.0003013,120]
[391118327,1760361249444,-541.00097051,0.0003013,120]
[391118328,1760361249495,-1181.12949225,0.0003013,120]
[391118329,1760361249549,-151.94721898,0.0003013,120]
[391118330,1760361249602,-199.6948495,0.0003013,120]
[391118331,1760361249655,-1321.05601157,0.0003013,120]
[391118332,1760361249705,-612.40471248,0.00030136,70]
[391118333,1760361249758,-400.0,0.00030136,70]
[391118334,1760361249812,-2356.53627392,0.00030136,120]
[391118335,1760361249870,-212.56552637,0.00030136,120]
[391118336,1760361249928,-742.71,0.00030136,120]
[391118337,1760361249983,-300.0,0.00030137,120]
[391118338,1760361250038,-1000.0,0.00030137,120]
[391118339,1760361250091,-1500.0,0.00030137,120]
[391118340,1760361250143,-599.15066914,0.000302,120]
[391118341,1760361250202,-1000.0,0.00030201,30]
[391118342,1760361250258,-742.71,0.00030273,120]
[391118343,1760361250316,-1000.0,0.00030328,30]
[391118344,1760361250371,-3230.1393996,0.00030397,120]
[391118345,1760361250425,-3182.2,0.000304,30]
[391118346,1760361250479,-742.71,0.0003041,120]
[391118347,1760361250536,-150.0,0.00030444,120]
[391118348,1760361250591,-1000.0,0.00030456,30]
[391118349,1760361250648,-635.86297543,0.0003049,30]
[391118350,1760361250716,-150.0,0.00030495,120]
[391118351,1760361250772,-742.71,0.00030547,120]
[391118352,1760361250832,-1000.0,0.00030583,30]
[391118353,1760361250886,-150.0,0.00030649,120]
[391118354,1760361250938,-742.71,0.00030684,120]
[391118355,1760361250991,-96000.0,0.00030685,30]
[391118357,1760361251380,-1000.0,0.0003071,30]
[391118358,1760361251439,-150.0,0.00030754,120]
[391118359,1760361251489,-250.0,0.000308,30]
[391118360,1760361251540,-742.71,0.00030821,120]
[391118361,1760361251590,-1000.0,0.00030838,30]
[391118362,1760361251640,-150.0,0.00030881,120]
[391118363,1760361251692,-150.0,0.00030941,120]
[391118364,1760361251744,-742.71,0.00030958,120]
[391118365,1760361251798,-1000.0,0.00030965,30]
[391118366,1760361251849,-150.0,0.00030993,120]
[391118367,1760361251901,-186.21249167,0.00031,120]
[391118368,1760361251953,-1000.0,0.00031,120]
[391118369,1760361252002,-152.0,0.00031,120]
[391118370,1760361252052,-173.0,0.00031,120]
[391118371,1760361252097,-900.00198243,0.00031,120]
[391118372,1760361252143,-475.32661018,0.00031,30]
[391118373,1760361252196,-150.0,0.00031028,120]
[391118374,1760361252253,-1000.0,0.00031093,30]
[391118375,1760361252301,-742.71,0.00031095,120]
[391118376,1760361252350,-2571.0,0.000311,30]
[391118377,1760361252400,-150.0,0.00031114,120]
[391118378,1760361252455,-150.0,0.00031122,120]
[391118379,1760361252506,-150.0,0.00031177,120]
[391118380,1760361252558,-3182.2,0.000312,30]
[391118381,1760361252609,-1000.0,0.0003122,30]
[391118382,1760361252665,-742.71,0.00031232,120]
[391118383,1760361252717,-300.0,0.00031233,120]
[391118384,1760361252768,-1000.0,0.00031348,30]
[391118385,1760361252819,-742.71,0.00031369,120]
[391118386,1760361252871,-150.0,0.00031379,120]
[391118387,1760361252926,-400.0,0.000314,120]
[391118388,1760361252983,-677.42231283,0.000314,30]
[391118389,1760361253037,-1000.0,0.00031475,30]
[391118390,1760361253089,-210.5817687,0.000315,120]
[391118391,1760361253140,-742.71,0.00031506,120]
[391118392,1760361253195,-1000.0,0.00031602,30]
[391118393,1760361253249,-150.0,0.00031607,120]
[391118394,1760361253303,-742.71,0.00031643,120]
[391118395,1760361253355,-173.0,0.000317,120]
[391118396,1760361253407,-1000.0,0.0003173,30]
[391118397,1760361253461,-742.71,0.0003178,120]
[391118398,1760361253513,-150.0,0.0003184,120]
[391118399,1760361253569,-1000.0,0.00031857,30]
[391118400,1760361253623,-742.71,0.00031917,120]
[391118401,1760361253678,-1000.0,0.00031985,30]
[391118402,1760361253731,-2002.24989008,0.00032,120]
[391118403,1760361253785,-400.0,0.00032,120]
[391118404,1760361253838,-152.0,0.00032,120]
[391118405,1760361253894,-3182.2,0.00032,30]
[391118406,1760361253950,-2001.1,0.00032,32]
[391118407,1760361254004,-2734.0139,0.00032,120]
[391118408,1760361254057,-600.0,0.00032,120]
[391118409,1760361254110,-742.71,0.00032054,120]
[391118410,1760361254163,-1000.0,0.00032112,30]
[391118411,1760361254216,-742.71,0.00032191,120]
[391118412,1760361254266,-1000.0,0.0003224,30]
[391118413,1760361254318,-742.71,0.00032328,120]